fUST/lending_fUST_20240717
["ID","MTS","AMOUNT","RATE_DAILY","PERIOD"]
[332441792,1721185848019,-500.0,0.00021917,2]
[332441793,1721185848028,-500.0,0.00021917,2]
[332441794,1721185848037,-530.31250913,0.00021917,2]
[332441795,1721185848046,-500.0,0.00021917,2]
[332441796,1721185848056,-500.0,0.00021917,2]
[332441797,1721185848065,-500.0,0.00021917,2]
[332441798,1721185848074,-500.0,0.00021917,2]
[332441799,1721185848083,-500.0,0.00021917,2]
[332441800,1721185848092,-500.0,0.00021917,2]
[332441801,1721185848101,-1618.57,0.00021917,2]
[332441802,1721185848111,-500.0,0.00021917,2]
[332441803,1721185848120,-507.29335605,0.00021917,2]
[332441804,1721185848129,-501.22446049,0.00021917,2]
[332441805,1721185848139,-500.0,0.00021917,2]
[332441806,1721185848148,-500.0,0.00021917,2]
[332441807,1721185848157,-500.0,0.00021917,2]
[332441808,1721185848167,-500.0,0.00021917,2]
[332441809,1721185848176,-500.0,0.00021917,2]
[332441810,1721185848188,-500.0,0.00021917,2]
[332441811,1721185848197,-500.0,0.00021917,2]
[332441812,1721185848207,-500.0,0.00021917,2]
[332441813,1721185848218,-500.0,0.00021917,2]
[332441814,1721185848228,-500.0,0.00021917,2]
[332441815,1721185848237,-500.0,0.00021917,2]
[332441816,1721185848246,-500.0,0.00021917,2]
[332441817,1721185848257,-503.78582817,0.00021917,2]
[332441818,1721185848267,-500.0,0.00021917,2]
[332441819,1721185848277,-500.0,0.00021917,2]
[332441820,1721185848286,-500.0,0.00021917,2]
[332441821,1721185848296,-500.0,0.00021917,2]
[332441822,1721185848307,-341.59097599,0.00021917,2]
[332441823,1721185848319,-507.97175011,0.00021917,2]
[332441824,1721185848329,-102.00578299,0.00021917,2]
[332441825,1721186067179,678.64807683,0.00015,2]
[332441826,1721186107476,189.34988495,0.00014999,2]
[332441830,1721186393099,154.72922386,0.00014999,2]
[332441832,1721186487239,481.17644705,0.00014999,2]
[332441833,1721186625855,1088.492263,0.00014999,2]
[332441836,1721186799567,154.91130425,0.00014999,2]
[332441838,1721186955077,1467.50851121,0.00014999,2]
[332441841,1721187019640,533.89673755,0.00014999,2]
[332441895,1721187039382,-300.0,0.00016254,2]
[332441896,1721187039391,-300.0,0.00016254,2]
[332441898,1721187039401,-169.5532,0.00016307,2]
[332441899,1721187039410,-169.5532,0.00016519,2]
[332441900,1721187039421,-169.5532,0.00016732,2]
[332441901,1721187039431,-8263.3539371,0.00016941,2]
[332441902,1721187039441,-169.5532,0.00016944,2]
[332441903,1721187039451,-169.5532,0.00017156,2]
[332441904,1721187039460,-420.0,0.00017766,2]
[332441905,1721187039470,-420.0,0.00017879,2]
[332441906,1721187039479,-5937.73960999,0.0001808,2]
[332441907,1721187039489,-166509.21567379,0.0001818,2]
[332441908,1721187039499,-155.50074004,0.0001818,2]
[332441909,1721187039509,-1043.69980669,0.0001818,2]
[332441910,1721187039518,-386.697208,0.0001818,2]
[332441911,1721187039527,-309.21421881,0.0001818,2]
[332441912,1721187039537,-530.20355034,0.0001818,2]
[332441913,1721187039546,-209.52977959,0.0001818,2]
[332441914,1721187039555,-1501.2098115,0.0001818,2]
[332441915,1721187039565,-228.23042516,0.00018798,2]
[332441916,1721187039574,-960.23241236,0.000189,2]
[332441917,1721187039584,-197.57665127,0.00019039,2]
[332441918,1721187039593,-165.114761,0.00019178,2]
[332441919,1721187039603,-587.0,0.0001942,2]
[332441920,1721187039614,-164.453427,0.00019641,2]
[332441921,1721187039623,-587.0,0.00019667,2]
[332441922,1721187039633,-357.890306,0.00019999,2]
[332441923,1721187039643,-993.88731362,0.0002,2]
[332441924,1721187039652,-228.33337167,0.0002,2]
[332441925,1721187039662,-172.45273144,0.0002,2]
[332441926,1721187039672,-1067.07630449,0.0002,2]
[332441927,1721187039682,-351.48561107,0.0002,2]
[332441928,1721187039691,-10881.57456162,0.0002,2]
[332441929,1721187039701,-154.72922386,0.0002,2]
[332441930,1721187039710,-151.27311453,0.0002,2]
[332441931,1721187039720,-215.01715484,0.0002,2]
[332441932,1721187039729,-158.8017905,0.0002,2]
[332441933,1721187039740,-154.72922386,0.0002,2]
[332441934,1721187039749,-1168.32811277,0.0002,2]
[332441935,1721187039758,-435.0,0.0002,2]
[332441936,1721187039768,-154.88949836,0.0002,2]
[332441937,1721187039778,-154.72922386,0.0002,2]
[332441938,1721187039787,-154.72922386,0.0002,2]
[332441939,1721187039796,-154.72922386,0.0002,2]
[332441940,1721187039806,-174.15623839,0.0002,2]
[332441941,1721187039816,-357.890306,0.00020112,2]
[332441942,1721187039826,-1124.26165812,0.00020244,2]
[332441943,1721187039835,-357.890306,0.00020375,2]
[332441944,1721187039845,-4953.84625735,0.00020491,2]
[332441945,1721187039854,-4953.84625735,0.00020582,2]
[332441946,1721187039863,-265.9,0.00020702,2]
[332441947,1721187039873,-357.890306,0.0002077,2]
[332441948,1721187039883,-4953.84625735,0.00020967,2]
[332441949,1721187039893,-299.61744642,0.00021,2]
[332441950,1721187039903,-295.08989123,0.00021,2]
[332441951,1721187039912,-285.0,0.00021,2]
[332441952,1721187039923,-357.890306,0.00021033,2]
[332441953,1721187039933,-618.13442,0.00021096,2]
[332441954,1721187039943,-265.9,0.00021138,2]
[332441955,1721187039954,-564.0,0.00021227,2]
[332441956,1721187039964,-645.21308291,0.00021256,2]
[332441957,1721187039975,-4953.84625735,0.00021303,2]
[332441958,1721187039985,-357.890306,0.00021335,2]
[332441959,1721187039996,-357.890306,0.00021389,2]
[332441960,1721187040006,-500.0,0.00021465,7]
[332441961,1721187040016,-500.0,0.00021465,7]
[332441962,1721187040027,-500.0,0.00021465,7]
[332441963,1721187040037,-500.0,0.00021465,7]
[332441964,1721187040046,-500.0,0.00021465,7]
[332441965,1721187040056,-500.0,0.00021465,7]
[332441966,1721187040066,-500.0,0.00021465,7]
[332441967,1721187040075,-597.21,0.00021465,7]
[332441968,1721187040085,-289.18175283,0.0002148,2]
[332441969,1721187040096,-265.9,0.00021574,2]
[332441970,1721187040106,-4953.84625735,0.00021596,2]
[332441971,1721187040115,-161.18940812,0.00021633,2]
[332441972,1721187040125,-381.65052879,0.00021633,2]
[332441973,1721187040135,-500.0,0.00021633,2]
[332441974,1721187040146,-500.0,0.00021633,2]
[332441975,1721187040158,-500.0,0.00021633,2]
[332441976,1721187040167,-500.0,0.00021633,2]
[332441977,1721187040179,-500.0,0.00021633,2]
[332441978,1721187040188,-500.0,0.00021633,2]
[332441979,1721187040198,-500.0,0.00021633,2]
[332441981,1721187040207,-500.0,0.00021633,2]
[332441982,1721187040216,-500.0,0.00021633,2]
[332441983,1721187040227,-465.25468359,0.00021633,2]
[332441984,1721187040237,-500.0,0.00021633,2]
[332441985,1721187040247,-500.0,0.00021633,2]
[332441986,1721187040256,-500.0,0.00021633,2]
[332441987,1721187040265,-500.0,0.00021633,2]
[332441988,1721187040275,-280.8443631,0.00021633,2]
[332441989,1721187040284,-500.0,0.00021633,2]
[332441990,1721187040293,-500.0,0.00021633,2]
[332441991,1721187040302,-500.0,0.00021633,2]
[332441992,1721187040311,-500.0,0.00021633,2]
[332441993,1721187040320,-823.0,0.00021634,2]
[332441994,1721187040330,-150.0,0.000218,2]
[332441995,1721187040339,-2000.0,0.00021817,2]
[332441996,1721187040348,-400.35722804,0.00021817,2]
[332441997,1721187040357,-357.8903066,0.00021837,2]
[332441998,1721187040366,-306.0,0.00021863,2]
[332441999,1721187040375,-4953.84625736,0.00021876,2]
[332442000,1721187040384,-150.112233,0.000219,4]
[332442001,1721187040393,-150.112233,0.000219,5]
[332442002,1721187040402,-150.112233,0.000219,4]
[332442003,1721187040412,-150.112233,0.000219,4]
[332442004,1721187040424,-150.112233,0.000219,4]
[332442005,1721187040438,-150.112233,0.000219,2]
[332442006,1721187040448,-150.112233,0.000219,2]
[332442007,1721187040460,-150.112233,0.000219,2]
[332442008,1721187040469,-27815.62052483,0.00021907,5]
[332442009,1721187040479,-26583.44906496,0.00021907,5]
[332442010,1721187040488,-11096.5568962,0.00021907,3]
[332442011,1721187040497,-199738.024131,0.00021907,3]
[332442012,1721187040506,-154.72922386,0.00021917,2]
[332442013,1721187040515,-397.99421701,0.00021917,2]
[332442014,1721187040524,-500.0,0.00021917,2]
[332442015,1721187040533,-500.0,0.00021917,2]
[332442016,1721187040543,-501.15104022,0.00021917,2]
[332442017,1721187040552,-507.62529515,0.00021917,2]
[332442018,1721187040562,-599.93607543,0.00021917,2]
[332442019,1721187040574,-500.0,0.00021917,2]
[332442020,1721187040585,-500.0,0.00021917,2]
[332442021,1721187040594,-500.0,0.00021917,2]
[332442022,1721187040606,-507.04433471,0.00021917,2]
[332442023,1721187040616,-500.0,0.00021917,2]
[332442024,1721187040627,-500.0,0.00021917,2]
[332442025,1721187040638,-503.01215136,0.00021917,2]
[332442026,1721187040648,-500.0,0.00021917,2]
[332442027,1721187040658,-502.42004297,0.00021917,2]
[332442028,1721187040667,-500.0,0.00021917,2]
[332442029,1721187040677,-500.0,0.00021917,2]
[332442030,1721187040686,-500.0,0.00021917,2]
[332442031,1721187040694,-500.0,0.00021917,2]
[332442032,1721187040703,-500.0,0.00021917,2]
[332442033,1721187040713,-500.0,0.00021917,2]
[332442034,1721187040722,-500.0,0.00021917,2]
[332442035,1721187040731,-538.77411081,0.00021917,2]
[332442036,1721187040740,-232.01771972,0.00021917,2]
[332442037,1721187040750,-500.0,0.00021917,2]
[332442038,1721187040760,-500.0,0.00021917,2]
[332442039,1721187040770,-500.0,0.00021917,2]
[332442040,1721187040779,-500.0,0.00021917,2]
[332442041,1721187040788,-500.0,0.00021917,2]
[332442043,1721187040798,-500.0,0.00021917,2]
[332442045,1721187040808,-368.72532816,0.00021917,2]
[332442046,1721187040818,-500.0,0.00021917,2]
[332442047,1721187040827,-500.0,0.00021917,2]
[332442048,1721187040837,-500.0,0.00021917,2]
[332442049,1721187040847,-502.79918602,0.00021917,2]
[332442050,1721187040857,-286.86417163,0.00021917,2]
[332442051,1721187040866,-546.94061471,0.00021917,2]
[332442052,1721187040876,-500.0,0.00021917,2]
[332442053,1721187040886,-435.69839176,0.00021917,2]
[332442054,1721187040895,-500.0,0.00021917,2]
[332442055,1721187040904,-501.97467573,0.00021917,2]
[332442056,1721187040913,-500.0,0.00021917,2]
[332442057,1721187040924,-500.24157953,0.00021917,2]
[332442058,1721187040935,-500.0,0.00021917,2]
[332442059,1721187040944,-500.0,0.00021917,2]
[332442060,1721187040953,-500.0,0.00021917,2]
[332442061,1721187040962,-500.0,0.00021917,2]
[332442062,1721187040972,-500.0,0.00021917,2]
[332442063,1721187040981,-500.14455914,0.00021917,2]
[332442064,1721187040990,-506.38974591,0.00021917,2]
[332442065,1721187041000,-500.0,0.00021917,2]
[332442066,1721187041009,-500.92333048,0.00021917,2]
[332442067,1721187041018,-500.0,0.00021917,2]
[332442068,1721187041027,-500.0,0.00021917,2]
[332442069,1721187041036,-500.0,0.00021917,2]
[332442070,1721187041045,-500.0,0.00021917,2]
[332442071,1721187041055,-500.0,0.00021917,2]
[332442072,1721187041064,-500.0,0.00021917,2]
[332442073,1721187041073,-500.0,0.00021917,2]
[332442074,1721187041083,-504.28462447,0.00021917,2]
[332442075,1721187041092,-528.03008142,0.00021917,2]
[332442076,1721187041101,-500.0,0.00021917,2]
[332442077,1721187041110,-500.0,0.00021917,2]
[332442078,1721187041119,-500.0,0.00021917,2]
[332442079,1721187041128,-500.0,0.00021917,2]
[332442080,1721187041137,-500.0,0.00021917,2]
[332442081,1721187041151,-500.0,0.00021917,2]
[332442082,1721187041161,-500.0,0.00021917,2]
[332442083,1721187041170,-500.0,0.00021917,2]
[332442084,1721187041181,-501.31863594,0.00021917,2]
[332442085,1721187041192,-500.0,0.00021917,2]
[332442086,1721187041201,-504.06594604,0.00021917,2]
[332442087,1721187041210,-500.0,0.00021917,2]
[332442088,1721187041220,-451.9552508,0.00021917,2]
[332442089,1721187041230,-500.0,0.00021917,2]
[332442090,1721187041239,-506.09091708,0.00021917,2]
[332442091,1721187041249,-500.0,0.00021917,2]
[332442092,1721187041259,-500.0,0.00021917,2]
[332442093,1721187041268,-500.0,0.00021917,2]
[332442094,1721187041278,-500.0,0.00021917,2]
[332442095,1721187041287,-500.0,0.00021917,2]
[332442096,1721187041296,-500.49192096,0.00021917,2]
[332442097,1721187041305,-501.41812093,0.00021917,2]
[332442098,1721187041315,-500.0,0.00021917,2]
[332442099,1721187041324,-500.0,0.00021917,2]
[332442100,1721187041334,-393.89739677,0.00021917,2]
[332442101,1721187041343,-500.0,0.00021917,2]
[332442102,1721187041352,-500.0,0.00021917,2]
[332442103,1721187041362,-640.73785057,0.00021917,2]
[332442104,1721187041371,-500.0,0.00021917,2]
[332442105,1721187041380,-501.60446975,0.00021917,2]
[332442106,1721187041389,-500.0,0.00021917,2]
[332442107,1721187041399,-500.0,0.00021917,2]
[332442108,1721187041408,-500.0,0.00021917,2]
[332442109,1721187041417,-500.0,0.00021917,2]
[332442110,1721187041428,-500.0,0.00021917,2]
[332442111,1721187041437,-500.0,0.00021917,2]
[332442112,1721187041446,-500.0,0.00021917,2]
[332442113,1721187041456,-500.0,0.00021917,2]
[332442114,1721187041465,-500.0,0.00021917,2]
[332442115,1721187041475,-509.70236727,0.00021917,2]
[332442116,1721187041484,-500.0,0.00021917,2]
[332442117,1721187041493,-500.0,0.00021917,2]
[332442118,1721187041502,-500.0,0.00021917,2]
[332442119,1721187041512,-503.75988511,0.00021917,2]
[332442120,1721187041521,-500.0,0.00021917,2]
[332442121,1721187041531,-500.0,0.00021917,2]
[332442122,1721187041540,-500.0,0.00021917,2]
[332442123,1721187041550,-506.75001653,0.00021917,2]
[332442124,1721187041559,-500.0,0.00021917,2]
[332442125,1721187041568,-500.0,0.00021917,2]
[332442126,1721187041578,-500.0,0.00021917,2]
[332442127,1721187041587,-500.0,0.00021917,2]
[332442128,1721187041597,-503.78370883,0.00021917,2]
[332442129,1721187041607,-500.0,0.00021917,2]
[332442130,1721187041616,-500.0,0.00021917,2]
[332442131,1721187041625,-500.0,0.00021917,2]
[332442132,1721187041634,-504.92971963,0.00021917,2]
[332442133,1721187041644,-500.0,0.00021917,2]
[332442134,1721187041653,-500.0,0.00021917,2]
[332442135,1721187041825,-596.95998258,0.00021917,2]
[332442136,1721187041836,-500.0,0.00021917,2]
[332442137,1721187041845,-503.41197868,0.00021917,2]
[332442138,1721187041855,-500.0,0.00021917,2]
[332442139,1721187041864,-572.42693391,0.00021917,2]
[332442140,1721187041873,-500.0,0.00021917,2]
[332442141,1721187041882,-500.0,0.00021917,2]
[332442142,1721187041892,-524.81603666,0.00021917,2]
[332442143,1721187041901,-500.0,0.00021917,2]
[332442144,1721187041910,-500.0,0.00021917,2]
[332442145,1721187041919,-502.97136074,0.00021917,2]
[332442146,1721187041930,-528.62653309,0.00021917,2]
[332442147,1721187041939,-500.0,0.00021917,2]
[332442148,1721187041948,-500.0,0.00021917,2]
[332442149,1721187041958,-500.0,0.00021917,2]
[332442150,1721187041967,-524.40491596,0.00021917,2]
[332442151,1721187041977,-500.0,0.00021917,2]
[332442152,1721187041986,-500.0,0.00021917,2]
[332442153,1721187041995,-500.64877549,0.00021917,2]
[332442154,1721187042005,-500.0,0.00021917,2]
[332442155,1721187042014,-501.52623324,0.00021917,2]
[332442156,1721187042023,-500.0,0.00021917,2]
[332442157,1721187042032,-504.43312534,0.00021917,2]
[332442158,1721187042042,-500.0,0.00021917,2]
[332442159,1721187042051,-500.0,0.00021917,2]
[332442160,1721187042060,-500.0,0.00021917,2]
[332442161,1721187042070,-524.36714738,0.00021917,2]
[332442162,1721187042080,-500.0,0.00021917,2]
[332442163,1721187042089,-500.0,0.00021917,2]
[332442164,1721187042099,-500.0,0.00021917,2]
[332442165,1721187042109,-500.0,0.00021917,2]
[332442166,1721187042118,-500.0,0.00021917,2]
[332442167,1721187042129,-526.43835714,0.00021917,2]
[332442168,1721187042139,-500.0,0.00021917,2]
[332442169,1721187042153,-299.52447783,0.00021917,2]
[332442170,1721187042163,-500.0,0.00021917,2]
[332442171,1721187042175,-519.99754422,0.00021917,2]
[332442172,1721187042186,-503.27635602,0.00021917,2]
[332442173,1721187042198,-567.78899762,0.00021917,2]
[332442174,1721187042207,-500.0,0.00021917,2]
[332442175,1721187042219,-500.0,0.00021917,2]
[332442176,1721187042230,-500.0,0.00021917,2]
[332442177,1721187042242,-500.0,0.00021917,2]
[332442178,1721187042253,-502.52620684,0.00021917,2]
[332442179,1721187042262,-553.61037358,0.00021917,2]
[332442180,1721187042272,-500.0,0.00021917,2]
[332442181,1721187042283,-500.0,0.00021917,2]
[332442182,1721187042294,-500.0,0.00021917,2]
[332442183,1721187042303,-500.0,0.00021917,2]
[332442184,1721187042313,-502.07696631,0.00021917,2]
[332442185,1721187042323,-500.0,0.00021917,2]
[332442186,1721187042334,-515.74734222,0.00021917,2]
[332442187,1721187042344,-208.9063939,0.00021917,2]
[332442188,1721187042354,-500.0,0.00021917,2]
[332442189,1721187042364,-500.0,0.00021917,2]
[332442190,1721187042372,-500.0,0.00021917,2]
[332442191,1721187042382,-500.0,0.00021917,2]
[332442192,1721187042391,-500.0,0.00021917,2]
[332442193,1721187042400,-500.0,0.00021917,2]
[332442194,1721187042411,-500.0,0.00021917,2]
[332442195,1721187042424,-500.0,0.00021917,2]
[332442196,1721187042435,-500.0,0.00021917,2]
[332442197,1721187042446,-500.0,0.00021917,2]
[332442198,1721187042455,-500.0,0.00021917,2]
[332442199,1721187042464,-500.0,0.00021917,2]
[332442200,1721187042473,-502.2690887,0.00021917,2]
[332442201,1721187042483,-500.0,0.00021917,2]
[332442202,1721187042492,-500.0,0.00021917,2]
[332442203,1721187042501,-500.0,0.00021917,2]
[332442204,1721187042511,-500.0,0.00021917,2]
[332442205,1721187042520,-506.41171441,0.00021917,2]
[332442206,1721187042530,-500.0,0.00021917,2]
[332442207,1721187042540,-500.0,0.00021917,2]
[332442208,1721187042549,-500.0,0.00021917,2]
[332442209,1721187042558,-500.0,0.00021917,2]
[332442210,1721187042567,-154.72539678,0.00021917,2]
[332442211,1721187042577,-500.0,0.00021917,2]
[332442212,1721187042586,-501.10960486,0.00021917,2]
[332442213,1721187042595,-632.62101172,0.00021917,2]
[332442214,1721187042604,-501.76336932,0.00021917,2]
[332442215,1721187042613,-600.96643904,0.00021917,2]
[332442216,1721187042623,-532.79055912,0.00021917,2]
[332442217,1721187042632,-500.0,0.00021917,2]
[332442218,1721187042641,-500.0,0.00021917,2]
[332442219,1721187042651,-500.0,0.00021917,2]
[332442220,1721187042660,-500.0,0.00021917,2]
[332442221,1721187042670,-500.0,0.00021917,2]
[332442222,1721187042681,-517.40517704,0.00021917,2]
[332442223,1721187042691,-500.0,0.00021917,2]
[332442224,1721187042701,-507.77035777,0.00021917,2]
[332442225,1721187042710,-500.0,0.00021917,2]
[332442226,1721187042722,-500.0,0.00021917,2]
[332442227,1721187042732,-500.0,0.00021917,2]
[332442228,1721187042742,-500.0,0.00021917,2]
[332442229,1721187042751,-500.0,0.00021917,2]
[332442230,1721187042761,-369.9945117,0.00021917,2]
[332442231,1721187042771,-500.0,0.00021917,2]
[332442232,1721187042780,-502.57352466,0.00021917,2]
[332442233,1721187042790,-500.0,0.00021917,2]
[332442234,1721187042800,-500.0,0.00021917,2]
[332442235,1721187042810,-500.0,0.00021917,2]
[332442236,1721187042821,-500.0,0.00021917,2]
[332442237,1721187042832,-500.0,0.00021917,2]
[332442238,1721187042843,-500.0,0.00021917,2]
[332442239,1721187042852,-500.0,0.00021917,2]
[332442241,1721187042862,-500.0,0.00021917,2]
[332442242,1721187042872,-509.01146436,0.00021917,2]
[332442243,1721187042881,-500.0,0.00021917,2]
[332442244,1721187042890,-502.91771472,0.00021917,2]
[332442245,1721187042900,-239.07540967,0.00021917,2]
[332442246,1721187042909,-500.0,0.00021917,2]
[332442247,1721187042918,-505.20120875,0.00021917,2]
[332442248,1721187042930,-500.0,0.00021917,2]
[332442249,1721187042941,-533.12223709,0.00021917,2]
[332442250,1721187042953,-500.0,0.00021917,2]
[332442251,1721187042962,-515.46089953,0.00021917,2]
[332442252,1721187042971,-500.0,0.00021917,2]
[332442253,1721187042981,-500.0,0.00021917,2]
[332442254,1721187042990,-500.0,0.00021917,2]
[332442255,1721187042999,-194.61319414,0.00021917,2]
[332442256,1721187043008,-500.0,0.00021917,2]
[332442257,1721187043018,-500.0,0.00021917,2]
[332442258,1721187043027,-500.0,0.00021917,2]
[332442259,1721187043036,-500.0,0.00021917,2]
[332442260,1721187043046,-500.0,0.00021917,2]
[332442261,1721187043055,-500.0,0.00021917,2]
[332442262,1721187043064,-500.0,0.00021917,2]
[332442264,1721187043074,-542.48542958,0.00021917,2]
[332442265,1721187043083,-500.0,0.00021917,2]
[332442266,1721187043092,-500.0,0.00021917,2]
[332442267,1721187043102,-500.0,0.00021917,2]
[332442268,1721187043111,-500.0,0.00021917,2]
[332442269,1721187043120,-500.0,0.00021917,2]
[332442270,1721187043129,-500.0,0.00021917,2]
[332442271,1721187043139,-500.0,0.00021917,2]
[332442272,1721187043152,-500.0,0.00021917,2]
[332442273,1721187043161,-500.0,0.00021917,2]
[332442274,1721187043171,-500.0,0.00021917,2]
[332442275,1721187043184,-500.0,0.00021917,2]
[332442276,1721187043194,-500.0,0.00021917,2]
[332442277,1721187043203,-500.0,0.00021917,2]
[332442278,1721187043212,-500.0,0.00021917,2]
[332442279,1721187043221,-500.0,0.00021917,2]
[332442280,1721187043234,-500.0,0.00021917,2]
[332442281,1721187043244,-500.0,0.00021917,2]
[332442282,1721187043253,-500.0,0.00021917,2]
[332442283,1721187043263,-500.0,0.00021917,2]
[332442284,1721187043273,-500.0,0.00021917,2]
[332442285,1721187043283,-500.0,0.00021917,2]
[332442286,1721187043292,-500.0,0.00021917,2]
[332442287,1721187043301,-500.0,0.00021917,2]
[332442288,1721187043311,-500.0,0.00021917,2]
[332442289,1721187043320,-500.0,0.00021917,2]
[332442290,1721187043329,-500.0,0.00021917,2]
[332442291,1721187043340,-500.0,0.00021917,2]
[332442292,1721187043349,-500.0,0.00021917,2]
[332442293,1721187043359,-500.0,0.00021917,2]
[332442294,1721187043368,-504.07693873,0.00021917,2]
[332442295,1721187043377,-500.0,0.00021917,2]
[332442296,1721187043386,-500.0,0.00021917,2]
[332442297,1721187043395,-500.0,0.00021917,2]
[332442298,1721187043404,-500.0,0.00021917,2]
[332442299,1721187043413,-168.79725663,0.00021917,2]
[332442300,1721187043422,-500.0,0.00021917,2]
[332442301,1721187043433,-500.0,0.00021917,2]
[332442302,1721187043442,-265.0,0.00021917,2]
[332442303,1721187043451,-500.0,0.00021917,2]
[332442304,1721187043461,-500.0,0.00021917,2]
[332442305,1721187043470,-500.0,0.00021917,2]
[332442306,1721187043479,-500.0,0.00021917,2]
[332442307,1721187043489,-500.0,0.00021917,2]
[332442308,1721187043498,-500.0,0.00021917,2]
[332442309,1721187043507,-500.0,0.00021917,2]
[332442310,1721187043517,-500.0,0.00021917,2]
[332442311,1721187043526,-500.0,0.00021917,2]
[332442312,1721187043535,-503.95797402,0.00021917,2]
[332442313,1721187043544,-764.99692513,0.00021917,2]
[332442314,1721187043553,-500.0,0.00021917,2]
[332442315,1721187043562,-479.0,0.00021917,2]
[332442316,1721187043571,-500.0,0.00021917,2]
[332442317,1721187043581,-500.0,0.00021917,2]
[332442318,1721187043591,-500.0,0.00021917,2]
[332442319,1721187043600,-503.25482998,0.00021917,2]
[332442320,1721187043609,-500.0,0.00021917,2]
[332442321,1721187043618,-500.0,0.00021917,2]
[332442322,1721187043627,-500.0,0.00021917,2]
[332442323,1721187043638,-482358.24907569,0.00021917,2]
[332442324,1721187043648,-500.0,0.00021917,2]
[332442325,1721187043657,-503.87740418,0.00021917,2]
[332442326,1721187043666,-502.6931602,0.00021917,2]
[332442327,1721187043678,-457.56903871,0.00021917,2]
[332442328,1721187043687,-500.0,0.00021917,2]
[332442329,1721187043701,-154.72922386,0.00021917,2]
[332442330,1721187043710,-500.0,0.00021917,2]
[332442331,1721187043720,-500.0,0.00021917,2]
[332442332,1721187043729,-500.0,0.00021917,2]
[332442333,1721187043739,-500.0,0.00021917,2]
[332442334,1721187043748,-500.0,0.00021917,2]
[332442335,1721187043757,-500.0,0.00021917,2]
[332442336,1721187043767,-8182.96114692,0.00021917,2]
[332442337,1721187043776,-500.0,0.00021917,2]
[332442338,1721187043785,-500.0,0.00021917,2]
[332442339,1721187043795,-500.0,0.00021917,2]
[332442340,1721187043804,-500.0,0.00021917,2]
[332442341,1721187043814,-500.0,0.00021917,2]
[332442343,1721187043823,-500.0,0.00021917,2]
[332442344,1721187043832,-500.0,0.00021917,2]
[332442346,1721187043842,-500.0,0.00021917,2]
[332442348,1721187043852,-500.0,0.00021917,2]
[332442349,1721187043863,-501.75326931,0.00021917,2]
[332442350,1721187043872,-500.0,0.00021917,2]
[332442351,1721187043882,-500.0,0.00021917,2]
[332442352,1721187043891,-508.86161878,0.00021917,2]
[332442353,1721187043901,-428.94151396,0.00021917,2]
[332442354,1721187043910,-505.47407513,0.00021917,2]
[332442355,1721187043919,-500.0,0.00021917,2]
[332442356,1721187043930,-500.0,0.00021917,2]
[332442357,1721187043939,-500.0,0.00021917,2]
[332442358,1721187043949,-500.0,0.00021917,2]
[332442359,1721187043958,-500.0,0.00021917,2]
[332442360,1721187043967,-500.0,0.00021917,2]
[332442361,1721187043977,-500.0,0.00021917,2]
[332442362,1721187043987,-500.0,0.00021917,2]